[Event "CCC-GM 2022"]
[Site "Ballerup"]
[Date "2022.05.27"]
[Round "4.5"]
[White "Brunello, Sabino"]
[Black "Haubro, Martin"]
[Result "1-0"]
[ECO "E48"]
[WhiteElo "2521"]
[BlackElo "2428"]
[Annotator "TA"]
[PlyCount "97"]
[EventDate "2022.05.25"]
[EventType "tourn"]
[EventCountry "DEN"]
[SourceTitle "playchess.com"]
[Source "ChessBase"]
[SourceQuality "1"]
[TimeControl "5400+30"]

{[%evp 19,97,-8,-12,-8,-7,-54,-44,-47,0,-15,-2,-14,0,-28,0,5,-24,-18,21,0,7,0,11,-10,16,0,0,-18,-10,-7,0,0,-9,0,0,-45,87,73,172,153,167,168,166,152,161,164,153,154,144,158,153,107,107,104,91,93,95,88,182,177,370,131,126,0,481,379,466,477,472,469,487,421,774,769,746,734,859,823,793,637]} 1. d4 {[%emt 0:04:54]} Nf6 {[%emt 0:00:06]} 2. c4 {[%emt 0:00:03]} e6 {[%emt 0:00:04]} 3. Nc3 {[%emt 0:00:03]} Bb4 {[%emt 0:00:06]} 4. e3 {[%emt 0:00:03]} O-O {[%emt 0:00:37]} 5. Bd3 {[%emt 0:00:05]} d5 {[%emt 0:00:13]} 6. Nge2 {[%emt 0:01:03]} c5 {[%emt 0:06:21]} 7. a3 {[%emt 0:01:35]} Bxc3+ {[%emt 0:19:15]} 8. bxc3 {[%emt 0:03:04]} dxc4 {[%emt 0:00:16]} 9. Bxc4 {[%emt 0:00:01]} Qc7 {[%emt 0:00:29]} 10. Bd3 {[%emt 0:00:14]} Nc6 {[#] is now debated instead of 10...e5.} 11. Ng3 $1 $146 {[%emt 0:21:52][%mdl 8] An important novelty. E49: Nimzo-Indian: Rubinstein: 5 Bd3 d5 6 a3 Bxc3+ 7 bxc3.} ({Predecessor:} 11. f4 Rd8 12. O-O b6 13. Ng3 Bb7 14. Qe2 Rd7 15. Bb2 Rad8 16. Rad1 h6 17. Nh5 Nxh5 18. Qxh5 Ne7 {½-½ (49) Tabatabaei,M (2632)-Grischuk,A (2742) Chess.com INT 2022}) 11... e5 {[%emt 0:12:14][%cal Re5d4]} 12. dxe5 {[%emt 0:00:20]} (12. O-O $11 {is superior.}) 12... Nxe5 $15 {[%emt 0:01:21] Hoping for ...Rd8.} 13. Be2 {[%emt 0:01:09] Black is slightly better.} Be6 {[%emt 0:17:37]} 14. f4 {[%emt 0:04:04]} Rad8 {[%emt 0:00:13]} 15. Qc2 {[%emt 0:02:33]} Nc6 {[%emt 0:00:08]} 16. e4 {[%emt 0:08:26]} Bg4 {[%emt 0:04:40]} 17. Bxg4 {[%emt 0:01:41]} Nxg4 {[%emt 0:00:27]} 18. h3 {[%emt 0:00:49]} Nh6 {[%emt 0:07:46]} 19. O-O {[%emt 0:03:34]} f6 {[%emt 0:00:35]} 20. Be3 {[%emt 0:02:49]} b6 {[%emt 0:00:06]} 21. Rae1 {[%emt 0:00:31][%cal Oe4e5]} (21. e5 {seems wilder.} Qf7 22. exf6 Qxf6 23. Rae1) 21... Nf7 {[%emt 0:02:00]} 22. Bc1 {[%emt 0:06:50]} Kh8 {[%emt 0:04:34]} 23. Rf3 {[%emt 0:04:58]} Qd7 {[%emt 0:05:51]} 24. Kh2 {[%emt 0:01:29]} Qe6 {[%emt 0:02:05]} 25. e5 {[%emt 0:17:19]} fxe5 {[%emt 0:01:14]} 26. f5 {[%emt 0:00:01][%cal Bf4f5,Bf5f6][%mdl 32]} Qc4 {[%emt 0:02:04][%cal Oc6d4] ...Nd4! is the strong threat.} 27. Re2 {[%emt 0:00:19]} Nd6 {[%emt 0:02:29]} (27... Na5 $15 {stays ahead.}) 28. Bg5 $16 {[%emt 0:00:35][%mdl 1024] White has strong compensation.} Rde8 {[%emt 0:04:07]} (28... Rd7 $16) 29. f6 {[%emt 0:02:53]} g6 {[%emt 0:00:22]} 30. Bh6 $1 {[%emt 0:01:12]} Rf7 {[%emt 0:00:19]} 31. Qd2 {[%emt 0:00:44]} Qe6 {[%emt 0:01:20]} 32. Rd3 $1 {[%emt 0:01:24]} Nc4 {[%emt 0:04:08]} 33. Bg7+ {[%emt 0:00:13]} Rxg7 {[%emt 0:00:04]} 34. fxg7+ {[%emt 0:00:03]} Kxg7 {[%emt 0:00:05]} 35. Qg5 {[%emt 0:00:58]} ({Not} 35. Rd7+ Kh8 36. Qd5 Qxd5 37. Rxd5 Kg8 $14) (35. Qd1 $142 $1) 35... Rf8 {[%emt 0:01:01]} 36. a4 {[%emt 0:01:36]} h6 {[%emt 0:00:43]} 37. Qc1 {[%emt 0:00:19] White is more active.} Rf7 {[%emt 0:00:35]} 38. Ne4 {[%emt 0:01:28]} Qe7 {[%emt 0:02:12] [#]} (38... Ne7 $16 {keeps fighting.}) 39. Qd1 $1 $18 {[%emt 0:00:43]} Qh4 $2 {[%emt 0:01:01]} (39... Kh8 {was worth a try.} 40. Rd5 Qe6) 40. Rg3 $2 {[%emt 0:00:22]} (40. Rd7 $18 Ne7 41. Qd3 Qf4+ 42. g3) 40... Qd8 $16 {[%emt 0:00:19]} 41. Rd3 {[%emt 0:00:43][%mdl 8192]} (41. Qb1 $16 Qd5 {[#]} 42. Nxc5 $1) 41... Qh4 $1 $18 {[%emt 0:00:05]} 42. Rd7 {[%emt 0:00:38]} Qf4+ {[%emt 0:01:16]} 43. g3 {[%emt 0:02:30] White is clearly winning.} Qf5 {[%emt 0:00:39]} 44. Rxf7+ {[%emt 0:00:21]} Qxf7 {[%emt 0:00:04]} 45. Rf2 {[%emt 0:00:08]} Qe8 {[%emt 0:00:04]} (45... Qe7 $142 46. Qd5 N4a5) 46. Qd5 {[%emt 0:02:49]} Ne3 {[%emt 0:00:04]} 47. Qd6 {[%emt 0:01:29] Black must now prevent Qc7+.} Nf5 {[%emt 0:00:18]} 48. Qf6+ {[%emt 0:00:39]} Kh7 {[%emt 0:00:06] [#]} 49. Qxf5 $3 {[%emt 0:00:43][%mdl 576] Clearance.  Weighted Error Value: White=0.22 (precise) /Black=0.22 (precise)} 1-0

[Event "CCC-GM 2022"]
[Site "Ballerup"]
[Date "2022.05.27"]
[Round "5.1"]
[White "Blomqvist, Erik"]
[Black "Brondt, Nicolai Kvist"]
[Result "1-0"]
[ECO "B44"]
[WhiteElo "2523"]
[BlackElo "2241"]
[Annotator "TA"]
[PlyCount "77"]
[EventDate "2022.05.25"]
[EventType "tourn"]
[EventCountry "DEN"]
[SourceTitle "playchess.com"]
[Source "ChessBase"]
[SourceQuality "1"]
[TimeControl "5400+30"]

{[%evp 9,77,10,14,11,8,5,25,26,47,60,54,54,49,50,80,86,93,82,82,85,95,116,109,62,104,102,144,120,168,167,167,151,173,168,183,165,167,166,189,168,223,164,275,275,310,310,357,373,389,389,383,368,364,366,468,448,474,474,607,555,858,839,1018,1000,2426,2194,29981,29982,29988,1655]} 1. e4 {[%emt 0:00:21]} c5 {[%emt 0:00:08]} 2. Nf3 {[%emt 0:00:09]} e6 {[%emt 0:00:09]} 3. d4 {[%emt 0:00:37]} cxd4 {[%emt 0:00:02]} 4. Nxd4 {[%emt 0:00:08]} Nc6 {[%emt 0:00:02]} 5. Bf4 {[%emt 0:00:35]} d6 {[%emt 0:05:26]} 6. Nxc6 {[%emt 0:00:19] B44: Sicilian: Taimanov: 5 Nb5.} bxc6 {[%emt 0:00:11]} 7. c4 {[%emt 0:00:08]} Nf6 {[%emt 0:11:38]} 8. Nc3 {[%emt 0:01:13] White has an edge.} Be7 {[%emt 0:01:43] [#]} 9. e5 $146 {[%emt 0:02:53]} ({Predecessor:} 9. Be2 O-O 10. O-O Bb7 11. Qc2 d5 12. Rfd1 Rc8 13. Bf3 Qa5 14. Qb3 Qb4 15. Be3 dxc4 16. Qxb4 Bxb4 {½-½ (39) Beerdsen,T (2468)-Ziegenfuss,A (2242) Berlin 2021}) 9... dxe5 {[%emt 0:00:28]} 10. Qxd8+ {[%emt 0:00:40]} Bxd8 {[%emt 0:02:17]} 11. Bxe5 {[%emt 0:00:19]} O-O {[%emt 0:21:24]} 12. Be2 {[%emt 0:01:59]} Nd7 {[%emt 0:03:21]} 13. Bd6 {[%emt 0:04:22]} Re8 {[%emt 0:00:01]} 14. Bf3 {[%emt 0:02:44]} Bb7 {[%emt 0:02:43]} 15. O-O-O $1 {[%emt 0:00:31]} Bb6 {[%emt 0:09:20] [#]} 16. Rd2 {[%emt 0:02:10]} ({White should play} 16. Bg3 $1 $16 Nf6 {[#]} 17. Nb5 $1 cxb5 18. Bxb7) 16... Rac8 {[%emt 0:05:16]} 17. Rhd1 {[%emt 0:04:17]} Nf8 {[%emt 0:01:05]} 18. Na4 {[%emt 0:05:53] White is more active.} Bd8 {[%emt 0:03:17]} (18... e5 $16) 19. Nc5 $18 {[%emt 0:01:38]} Ba8 {[%emt 0:00:20]} 20. Kc2 $36 {[%emt 0:01:56][%mdl 2048] Keeping Black busy.} Ng6 {[%emt 0:00:19]} 21. g3 {[%emt 0:02:06][%cal Bg2g3,Bg3g4,Bg4g5][%mdl 32]} Ne7 {[%emt 0:01:57]} 22. g4 {[%emt 0:10:13] Against Nf5} Ng6 {[%emt 0:02:49]} 23. Be4 {[%emt 0:00:42]} Nf8 {[%emt 0:07:49]} 24. f4 {[%emt 0:04:34]} g6 {[%emt 0:05:55]} (24... Ba5 {keeps fighting.}) 25. g5 {[%emt 0:02:03]} Bb6 {[%emt 0:04:35]} (25... e5 {was called for.}) 26. b4 {[%emt 0:04:49]} Kg7 {[%emt 0:04:39]} 27. h4 {[%emt 0:02:53]} Bc7 {[%emt 0:03:46]} 28. Bxc7 {[%emt 0:09:45]} Rxc7 {[%emt 0:00:04]} 29. Rd8 {[%emt 0:00:10]} Rc8 {[%emt 0:00:33]} 30. Rxe8 {[%emt 0:00:53]} Rxe8 {[%emt 0:00:01]} 31. Rd6 {[%emt 0:00:08]} e5 {[%emt 0:03:52]} 32. f5 {[%emt 0:00:32]} gxf5 {[%emt 0:00:17]} 33. Bxf5 {[%emt 0:00:05]} Ng6 {[%emt 0:00:48]} 34. h5 {[%emt 0:00:31][%cal Bh4h5,Bh5h6][%mdl 32]} Nf4 {[%emt 0:00:26]} 35. h6+ {[%emt 0:00:41]} Kf8 {[%emt 0:00:44]} 36. Bxh7 {[%emt 0:00:42]} Nh3 {[%emt 0:00:30]} 37. g6 {[%emt 0:00:27]} fxg6 {[%emt 0:00:02]} 38. Bxg6 {[%emt 0:00:05]} Rc8 {[%emt 0:00:31]} 39. Bf5 {[%emt 0:00:09] Weighted Error Value: White=0.06 (flawless) /Black=0.52} (39. Rd7 $142 Nf4 40. Rf7+ Ke8 41. Rxf4+ Kd8 42. Rf7 Rc7 43. Rf8+ Ke7 44. h7 Kd6 45. Rf6+ Ke7 46. Re6+ Kf8 47. h8=Q#) 1-0

[Event "CCC-GM 2022"]
[Site "Ballerup"]
[Date "2022.05.27"]
[Round "5.2"]
[White "Hacker, Jonas"]
[Black "Komarov, Dimitri"]
[Result "1-0"]
[ECO "B31"]
[WhiteElo "2396"]
[BlackElo "2493"]
[Annotator "TA"]
[PlyCount "101"]
[EventDate "2022.05.25"]
[EventType "tourn"]
[EventCountry "DEN"]
[SourceTitle "playchess.com"]
[Source "ChessBase"]
[SourceQuality "1"]
[TimeControl "5400+30"]

{[%evp 17,101,0,0,0,0,0,0,-3,0,0,59,65,60,50,70,61,73,77,79,73,81,89,97,101,144,150,135,120,129,128,158,116,118,124,101,81,102,100,110,60,52,55,45,47,114,114,117,114,114,113,156,116,147,139,128,99,140,121,114,0,156,172,144,151,139,129,471,156,933,867,29967,10159,2212,4028,29975,29972,29987,29988,29988,29989,29989,29990,29990,29991,29991,29991]} 1. e4 {[%emt 0:00:04]} c5 {[%emt 0:00:26]} 2. Nf3 {[%emt 0:00:07]} Nc6 {[%emt 0:00:07]} 3. Bb5 {[%emt 0:00:05]} g6 {[%emt 0:00:29]} 4. O-O {[%emt 0:00:11]} Bg7 {[%emt 0:00:13]} 5. c3 {[%emt 0:00:13]} Nf6 {[%emt 0:01:11]} 6. Re1 {[%emt 0:00:24]} O-O {[%emt 0:00:41]} 7. d4 {[%emt 0:00:27]} d5 {[%emt 0:00:28]} 8. e5 {[%emt 0:02:18]} Ne4 {[%emt 0:00:04]} 9. Bxc6 {[%emt 0:01:13]} bxc6 {[%emt 0:00:16]} 10. Be3 $1 {[%emt 0:00:42][%mdl 4] is recently more successful than 10.Nbd2. B31: Sicilian: 2...Nc6 3 Bb5 g6.} cxd4 {[%emt 0:11:57]} 11. cxd4 {[%emt 0:00:27]} f6 {[%emt 0:00:24]} 12. Nbd2 {[%emt 0:03:11] The position is equal.} Nxd2 {[%emt 0:01:40]} 13. Qxd2 {[%emt 0:00:58] [#]} g5 $146 {[%emt 0:00:10]} ({Black should play} 13... Bg4 $11) ({Predecessor:} 13... Bg4 14. exf6 exf6 15. Bh6 Qd6 16. Bxg7 Kxg7 17. Rac1 a5 18. Rc3 Bxf3 19. gxf3 Rf7 {½-½ (46) Pospisil,L (2502)-Bubir,S (2601) ICCF email 2018}) 14. Qc3 $14 {[%emt 0:08:44]} Bd7 {[%emt 0:06:39]} 15. Nd2 {[%emt 0:02:39][%cal Bf3d2,Bd2b3,Bb3c5][%mdl 32]} fxe5 {[%emt 0:02:24]} 16. dxe5 {[%emt 0:01:52]} Rf5 {[%emt 0:00:27]} 17. Bd4 {[%emt 0:02:02]} e6 {[%emt 0:02:13]} 18. Nb3 {[%emt 0:10:19]} Qc7 {[%emt 0:03:01]} 19. Nc5 {[%emt 0:01:54]} Raf8 {[%emt 0:00:17]} 20. Rac1 {[%emt 0:02:43]} Rf4 {[%emt 0:07:50]} 21. Nxd7 {[%emt 0:13:56]} Qxd7 {[%emt 0:00:07]} 22. g3 $1 {[%emt 0:00:15]} Rf3 {[%emt 0:12:32]} 23. Qxc6 {[%emt 0:00:59]} Qf7 {[%emt 0:00:02][%cal Rf3f2]} 24. Re2 {[%emt 0:01:58]} h5 {[%emt 0:06:58]} 25. Bc5 {[%emt 0:03:32]} Rd8 {[%emt 0:04:51]} 26. Bd6 {[%emt 0:04:48]} h4 {[%emt 0:03:16]} 27. Qc7 {[%emt 0:02:21]} Rd7 {[%emt 0:00:09]} 28. Qc8+ {[%emt 0:02:17]} (28. Qc2 $1 $16) 28... Kh7 {[%emt 0:00:09]} 29. Qc2+ {[%emt 0:00:11]} Kh6 {[%emt 0:01:39]} 30. Qa4 {[%emt 0:05:49]} Kh5 {[%emt 0:06:36]} (30... Kg6 $14) 31. h3 $16 {[%emt 0:05:09][%cal Bh2h3,Bh3h4,Bh4h5][%mdl 32]} hxg3 {[%emt 0:06:00]} 32. Qg4+ {[%emt 0:00:27]} Kh6 {[%emt 0:01:26][%cal Rg3f2]} 33. fxg3 {[%emt 0:00:43]} Rf5 {[%emt 0:05:27]} 34. Kg2 {[%emt 0:02:41] 0x0.000a5b1c8c7fdp-1022s more active pieces.} Qg6 {[%emt 0:05:32]} 35. Rh1 {[%emt 0:11:24]} Kh7 {[%emt 0:00:10]} 36. h4 {[%emt 0:00:34]} Bh6 {[%emt 0:00:07]} 37. h5 $1 {[%emt 0:01:02]} Qe8 {[%emt 0:00:33]} 38. Qa4 {[%emt 0:02:06]} (38. Rf1 $16 Rxf1 39. Kxf1) 38... Qd8 $2 {[%emt 0:06:19]} (38... g4 $1 $11) 39. Rf1 $36 {[%emt 0:03:19][%mdl 2048] White is on the roll.} Rxf1 {[%emt 0:00:04]} 40. Kxf1 {[%emt 0:00:07]} Rf7+ {[%emt 0:00:24]} 41. Kg2 {[%emt 0:00:36][%cal Bf1g2,Bg2g3,Bg3g4][%mdl 32] Hoping for Qc2+.} Qa8 $2 {[%emt 0:05:37][%mdl 8192] [#]} (41... Qc8 $16 {is a better chance.} 42. Kh3 Bg7) 42. Qd4 $2 {[%emt 0:01:19]} (42. Qc2+ $1 $18 {is the precise move to win.} Kh8 43. Qg6) 42... Qc6 $2 {[%emt 0:00:43] [#] A mistake that costs the game.} (42... Kh8 $16 43. Qd3 Qg8) 43. Qd3+ $1 $18 {[%emt 0:01:04]} Rf5 {[%emt 0:00:33]} 44. g4 {[%emt 0:01:07][%cal Bg3g4,Bg4f5,Bf5e6,Be6e7][%mdl 32]} d4+ {[%emt 0:00:01]} 45. Kg3 {[%emt 0:01:40]} Qh1 {[%emt 0:00:05]} 46. gxf5 {[%emt 0:00:33] White mates.} g4 {[%emt 0:00:01]} 47. fxe6+ {[%emt 0:01:23]} Kh8 {[%emt 0:00:03]} 48. Kxg4 {[%emt 0:00:59]} Qg1+ {[%emt 0:02:02]} 49. Qg3 {[%emt 0:00:22]} Qd1 {[%emt 0:00:02]} 50. Qf3 {[%emt 0:00:46]} d3 {[%emt 0:00:24]} 51. e7 {[%emt 0:00:58] Weighted Error Value: White=0.17 (very precise) /Black=0.53} 1-0

[Event "CCC-GM 2022"]
[Site "Ballerup"]
[Date "2022.05.27"]
[Round "5.3"]
[White "Stefansson, Vignir Vatnar"]
[Black "Brunello, Sabino"]
[Result "0-1"]
[ECO "A40"]
[WhiteElo "2496"]
[BlackElo "2521"]
[Annotator "TA"]
[PlyCount "104"]
[EventDate "2022.05.25"]
[EventType "tourn"]
[EventCountry "DEN"]
[SourceTitle "playchess.com"]
[Source "ChessBase"]
[SourceQuality "1"]
[TimeControl "5400+30"]

{[%evp 11,104,9,35,33,48,39,72,68,108,65,77,52,64,55,81,49,78,60,78,80,162,47,50,50,55,59,50,45,50,58,60,8,27,0,0,-26,-24,-76,-88,-85,-85,-79,29,-121,-106,-329,-312,-395,-85,-83,-83,-168,-129,-135,-133,-136,-70,-87,-39,-39,0,0,0,0,0,0,0,0,0,-435,0,-463,-403,-29975,-29976,-29976,-29977,-29975,-29976,-29981,0,-29982,-29983,-29982,-29983,-29990,-29991,-29991,-29970,-29968,-29969,-3086,-432,-789,-736]} 1. d4 {[%emt 0:00:02]} Nf6 {[%emt 0:05:05]} 2. c4 {[%emt 0:00:07]} e6 {[%emt 0:00:09]} 3. g3 {[%emt 0:00:05]} Bb4+ {[%emt 0:03:53]} 4. Nd2 {[%emt 0:00:06]} O-O {[%emt 0:02:56]} 5. Bg2 {[%emt 0:00:23]} d5 {[%emt 0:04:38]} 6. Ngf3 {[%emt 0:00:07]} c6 {[%emt 0:07:11]} 7. O-O {[%emt 0:00:11] E01: Catalan: Early deviations.} Nbd7 {[%emt 0:01:26]} 8. Qc2 {[%emt 0:00:09]} b5 {[%emt 0:05:09] 8...b6 is setting a new trend.} 9. c5 $1 {[%emt 0:12:56] White is better.} Ba5 {[%emt 0:00:52] [#]} 10. a3 $146 {[%emt 0:21:20]} ({Predecessor:} 10. e4 Bc7 11. e5 Ne8 12. Ne1 a5 13. b4 axb4 14. Nb3 f6 15. f4 fxe5 16. fxe5 Rxf1+ 17. Bxf1 {½-½ (45) Sertic,R (2397)-Rogic,D (2578) Sibenik 2012}) 10... Bc7 {[%emt 0:01:49]} 11. b4 {[%emt 0:01:54]} a5 {[%emt 0:19:19]} 12. Bb2 {[%emt 0:00:10]} Ng4 {[%emt 0:00:07]} 13. h3 {[%emt 0:05:06]} Nh6 {[%emt 0:00:10]} 14. Ne5 {[%emt 0:00:06]} Ra6 {[%emt 0:15:14]} 15. e4 {[%emt 0:00:28]} Nf6 {[%emt 0:05:40]} (15... a4 $16) 16. g4 {[%emt 0:01:32]} (16. a4 $1 $18 {[%cal Oe5c6] Nxc6! is the strong threat.} Bb7 17. axb5 cxb5 18. bxa5 (18. c6 Ba8 $16)) 16... Nxe4 $14 {[%emt 0:01:48]} 17. Nxe4 {[%emt 0:01:27]} dxe4 {[%emt 0:00:03]} 18. Qxe4 {[%emt 0:03:23]} (18. Bxe4 f5 19. gxf5 (19. Nxc6 Qh4 $17) 19... Qg5+ 20. Kh1 Nxf5 $11) 18... f5 {[%emt 0:00:41]} 19. gxf5 {[%emt 0:01:34]} Bxe5 {[%emt 0:00:36]} 20. Qxe5 {[%emt 0:06:04]} Rxf5 {[%emt 0:09:46]} 21. Qe3 {[%emt 0:03:39]} ({White should try} 21. Qe2 $14) 21... Rf7 $11 {[%emt 0:02:50]} 22. Bc3 {[%emt 0:05:55]} Nf5 {[%emt 0:00:22][%cal Bh6f5,Bf5h4,Bh4f3][%mdl 32]} 23. Qe5 {[%emt 0:02:07]} Nh4 $1 {[%emt 0:03:41] Strongly threatening ...Rf5.} 24. Be4 {[%emt 0:01:21] Against Rf5} (24. bxa5 $2 Rf5 25. Qd6 Qxd6 26. cxd6 Rg5 $19) (24. Bd2 $11 {keeps the balance.} Nxg2 25. Kxg2) 24... Nf3+ $17 {[%emt 0:03:30]} 25. Bxf3 {[%emt 0:00:08]} Rxf3 {[%emt 0:00:03]} 26. d5 {[%emt 0:01:04][%csl Gc3][%cal Re5g7]} Ra7 {[%emt 0:02:50]} (26... Qf6 $17 27. Qxf6 gxf6) 27. Kg2 {[%emt 0:04:23]} (27. dxe6 Re7 28. Rad1 (28. bxa5 $2 Qf8 $19) 28... Qf8 $15) (27. dxc6 $11 Qh4 28. c7) 27... Rf5 {[%emt 0:00:24]} 28. Qb8 {[%emt 0:00:52]} (28. Qe3 $17 {was worth a try.}) 28... Rb7 $19 {[%emt 0:01:02]} (28... axb4 $2 29. axb4 Rxa1 30. Bxa1 exd5 31. Rg1 $17) 29. Qd6 {[%emt 0:00:50]} Qg5+ {[%emt 0:01:37]} (29... Rd7 $1 $19 {[%cal Rd7d6] has better winning chances.} 30. Qxc6 (30. Qxe6+ $2 Rdf7 $19) 30... Rfxd5) 30. Qg3 $17 {[%emt 0:01:22]} exd5 {[%emt 0:01:35]} 31. bxa5 {[%emt 0:00:20]} (31. Rae1 $17 axb4 32. axb4) 31... Rbf7 {[%emt 0:00:52] And now ...Qxg3+ would win.} 32. f4 {[%emt 0:01:00]} Qd8 {[%emt 0:00:29] White must now prevent ...Rh5.} 33. Qe3 {[%emt 0:02:31]} Rh5 {[%emt 0:00:27]} (33... Re7 $17 34. Qd4 Qd7) 34. Rf3 $15 {[%emt 0:00:04]} Bf5 {[%emt 0:00:36]} (34... Re7 $1 $17 {[%cal Re7e3]} 35. Qf2 Bf5) 35. Rg3 {[%emt 0:00:29]} Be4+ {[%emt 0:00:34]} 36. Kh2 {[%emt 0:00:11]} Rh6 $36 {[%emt 0:00:28][%mdl 2048] Black is pushing.} 37. f5 {[%emt 0:01:25] aiming for Qxh6.} Rh5 {[%emt 0:00:35]} 38. f6 {[%emt 0:00:49]} Rxf6 {[%emt 0:00:27]} 39. Bxf6 {[%emt 0:03:02]} Qxf6 {[%emt 0:00:01] Really sharp!} 40. Rag1 $2 {[%emt 0:01:13][%mdl 8192]} (40. Re1 $11) 40... g6 $2 {[%emt 0:00:29]} ({Black should play} 40... Qe5 $1 $19 {[%cal Oh5h3] ( -> ...Rxh3+!)} 41. Qe2 (41. Qc3 $2 {gets mated.} Rxh3+ 42. Kxh3 Qh5#) 41... Rxh3+ $3 {[%mdl 512]} 42. Kxh3 Bf5+ 43. Qg4 Bxg4+ 44. Rxg4 Qe6) 41. a6 $2 {[%emt 0:00:30][%mdl 8192]} (41. Re1 $11 {and White has nothing to worry.}) 41... Qe5 $1 $19 {[%emt 0:01:02][%cal Oh5h3]} 42. R1g2 {[%emt 0:02:05] [#]} (42. a7 $2 {is a self mate.} Rxh3+ $3 {[%mdl 512]} 43. Kxh3 Qh5#) (42. Qe2 $19 Rxh3+ 43. Kxh3 Bf5+ 44. Qg4) 42... Rxh3+ $3 {[%emt 0:00:13][%mdl 576] Pin} 43. Kg1 {[%emt 0:00:01]} Qa1+ {[%emt 0:00:08]} 44. Kf2 {[%emt 0:00:05]} Rh1 {[%emt 0:00:04][%csl Gh1][%cal Ra1f1]} 45. Rg1 {[%emt 0:02:06] [#]} Rh2+ $2 {[%emt 0:01:26]} (45... Qf6+ $1 {mates} 46. Ke1 Rh2 47. Qe2 Rxe2+ 48. Kxe2 Qb2+ 49. Ke3 Qc3+ 50. Ke2 Qc4+ 51. Ke1 Qc1+ 52. Ke2 Qc2+ 53. Ke3 Qxc5+ 54. Kd2 d4 55. a7 Qxa7 56. Re1 Qa5+ 57. Ke2 d3+ 58. Kf1 {[#]} d2 $1 59. Rd1 Qc7 60. Rg4 Bf3 61. Rxd2 Bxg4 62. Rf2 Qg3 63. Ra2 Bh3+ 64. Ke2 Qg2+ 65. Kd3 Qxa2 66. a4 Qxa4 67. Ke2 Qd4 68. Kf3 Bf1 69. Kg3 Qe3+ 70. Kh2 Qh3+ 71. Kg1 Qg2#) 46. R3g2 $2 {[%emt 0:00:44][%mdl 8192]} Qf6+ {[%emt 0:00:13]} 47. Ke1 {[%emt 0:00:11]} Bxg2 {[%emt 0:00:08]} ({Weaker is} 47... Rxg2 48. Rxg2 Bxg2 49. a7 $11) 48. a7 {[%emt 0:00:30]} Qa1+ {[%emt 0:01:07]} 49. Kf2 {[%emt 0:00:07]} Be4+ {[%emt 0:00:32]} 50. Kg3 {[%emt 0:00:12]} Qe5+ {[%emt 0:00:14]} 51. Qf4 {[%emt 0:00:11]} Qxf4+ {[%emt 0:00:54]} 52. Kxf4 {[%emt 0:00:05]} Rf2+ {[%emt 0:00:06] Weighted Error Value: White=0.76/Black=0.57} 0-1